[Event "Titled Tuesday Blitz August 17 2021"]
[White "Sychev, Klementy"]
[Black "Awatramani, Janak"]
[WhiteFideId "4114060"]
[BlackFideId "2608359"]
[WhiteElo "2615"]
[BlackElo "2903"]
[Result "0-1"]
[Round "05"]
[TimeControl "180+1"]
[Date "2021.08.17"]
[WhiteClock "0:00:02"]
[BlackClock "0:00:20"]

1. e4 {[%clk 0:01:48]}  e6 {[%clk 0:02:55]} 2. d4 {[%clk 0:01:48]}  d5 {[%clk 0:02:55]} 3. Nc3 {[%clk 0:01:48]}  Nf6 {[%clk 0:02:53]} 4. e5 {[%clk 0:01:48]}  Nfd7 {[%clk 0:02:54]} 5. Nce2 {[%clk 0:01:47]}  c5 {[%clk 0:02:54]} 6. c3 {[%clk 0:01:48]}  a6 {[%clk 0:02:54]} 7. f4 {[%clk 0:01:47]}  b5 {[%clk 0:02:54]} 8. Nf3 {[%clk 0:01:47]}  g6 {[%clk 0:02:55]} 9. Be3 {[%clk 0:01:46]}  Nc6 {[%clk 0:02:55]} 10. Qd2 {[%clk 0:01:41]}  Bb7 {[%clk 0:02:54]} 11. Rg1 {[%clk 0:01:32]}  Qc7 {[%clk 0:02:51]} 12. g4 {[%clk 0:01:33]}  Nb6 {[%clk 0:02:49]} 13. b3 {[%clk 0:01:30]}  cxd4 {[%clk 0:02:43]} 14. Nexd4 {[%clk 0:01:30]}  Nd7 {[%clk 0:02:35]} 15. Nxc6 {[%clk 0:01:21]}  Bxc6 {[%clk 0:02:32]} 16. b4 {[%clk 0:01:21]}  Nb6 {[%clk 0:02:24]} 17. Bd4 {[%clk 0:01:12]}  Nc4 {[%clk 0:02:23]} 18. Qf2 {[%clk 0:01:11]}  a5 {[%clk 0:02:23]} 19. bxa5 {[%clk 0:01:09]}  Qxa5 {[%clk 0:02:15]} 20. Bd3 {[%clk 0:01:07]}  b4 {[%clk 0:02:09]} 21. cxb4 {[%clk 0:00:46]}  Bxb4+ {[%clk 0:02:07]} 22. Kf1 {[%clk 0:00:46]}  h5 {[%clk 0:01:50]} 23. gxh5 {[%clk 0:00:43]}  Rxh5 {[%clk 0:01:50]} 24. Rxg6 {[%clk 0:00:41]}  fxg6 {[%clk 0:01:13]} 25. Bxg6+ {[%clk 0:00:42]}  Kd7 {[%clk 0:01:13]} 26. Bxh5 {[%clk 0:00:42]}  Bc3 {[%clk 0:01:12]} 27. Rd1 {[%clk 0:00:35]}  Rg8 {[%clk 0:01:04]} 28. Ng5 {[%clk 0:00:25]}  Nd2+ {[%clk 0:00:59]} 29. Rxd2 {[%clk 0:00:17]}  Bxd2 {[%clk 0:00:59]} 30. Bf7 {[%clk 0:00:18]}  Rxg5 {[%clk 0:00:53]} 31. fxg5 {[%clk 0:00:17]}  Bxg5 {[%clk 0:00:53]} 32. Kg2 {[%clk 0:00:15]}  Qa4 {[%clk 0:00:45]} 33. h4 {[%clk 0:00:14]}  Be7 {[%clk 0:00:34]} 34. h5 {[%clk 0:00:13]}  Bg5 {[%clk 0:00:34]} 35. Kh3 {[%clk 0:00:10]}  Qd1 {[%clk 0:00:33]} 36. Kh2 {[%clk 0:00:06]}  Qg4 {[%clk 0:00:29]} 37. Bg6 {[%clk 0:00:05]}  Bf4+ {[%clk 0:00:28]} 38. Kh1 {[%clk 0:00:06]}  Qd1+ {[%clk 0:00:19]} 39. Kg2 {[%clk 0:00:05]}  Qg4+ {[%clk 0:00:19]} 40. Kf1 {[%clk 0:00:04]}  Bb5+ {[%clk 0:00:20]} 41. Ke1 {[%clk 0:00:02]}  Bg3 {[%clk 0:00:20]} 0-1


[Site "https://www.chess.com"]

[Event "Titled Tuesday Blitz August 17 2021"]
[White "Tanenbaum, Zachary"]
[Black "Martin Carmona, Gaston Manuel"]
[WhiteFideId "2060850"]
[BlackFideId "22284567"]
[WhiteElo "2165"]
[BlackElo "2161"]
[Result "1-0"]
[Round "05"]
[TimeControl "180+1"]
[Date "2021.08.17"]
[WhiteClock "0:00:47"]
[BlackClock "0:00:11"]

1. e4 {[%clk 0:02:59]}  e5 {[%clk 0:02:58]} 2. Nf3 {[%clk 0:02:59]}  Nc6 {[%clk 0:02:57]} 3. Bc4 {[%clk 0:02:59]}  Bc5 {[%clk 0:02:56]} 4. c3 {[%clk 0:02:59]}  Nf6 {[%clk 0:02:47]} 5. d3 {[%clk 0:02:59]}  O-O {[%clk 0:02:46]} 6. Nbd2 {[%clk 0:02:59]}  d5 {[%clk 0:02:46]} 7. exd5 {[%clk 0:03:00]}  Nxd5 {[%clk 0:02:47]} 8. Ne4 {[%clk 0:03:01]}  Be7 {[%clk 0:02:46]} 9. O-O {[%clk 0:03:00]}  Bg4 {[%clk 0:02:39]} 10. h3 {[%clk 0:02:59]}  Bh5 {[%clk 0:02:39]} 11. Re1 {[%clk 0:02:57]}  Kh8 {[%clk 0:02:36]} 12. Ng3 {[%clk 0:02:57]}  Bg6 {[%clk 0:02:31]} 13. Nxe5 {[%clk 0:02:57]}  Nxe5 {[%clk 0:02:31]} 14. Rxe5 {[%clk 0:02:58]}  Nb6 {[%clk 0:02:28]} 15. Bb3 {[%clk 0:02:58]}  Bd6 {[%clk 0:02:12]} 16. Re3 {[%clk 0:02:58]}  f5 {[%clk 0:02:12]} 17. Re1 {[%clk 0:02:58]}  f4 {[%clk 0:02:09]} 18. Ne4 {[%clk 0:02:58]}  f3 {[%clk 0:02:09]} 19. Ng5 {[%clk 0:02:58]}  fxg2 {[%clk 0:02:04]} 20. Qg4 {[%clk 0:02:59]}  Qf6 {[%clk 0:02:01]} 21. Qxg2 {[%clk 0:02:58]}  Bxd3 {[%clk 0:01:43]} 22. Be3 {[%clk 0:02:59]}  Rae8 {[%clk 0:01:27]} 23. Bd4 {[%clk 0:02:58]}  Rxe1+ {[%clk 0:01:10]} 24. Rxe1 {[%clk 0:02:58]}  Qg6 {[%clk 0:01:09]} 25. Re6 {[%clk 0:02:08]}  Qh5 {[%clk 0:00:47]} 26. Ne4 {[%clk 0:01:17]}  Rg8 {[%clk 0:00:24]} 27. Nf6 {[%clk 0:01:11]}  Qh6 {[%clk 0:00:16]} 28. Be3 {[%clk 0:00:48]}  gxf6 {[%clk 0:00:10]} 29. Qxg8+ {[%clk 0:00:46]}  Kxg8 {[%clk 0:00:11]} 30. Re8+ {[%clk 0:00:46]}  Kg7 {[%clk 0:00:11]} 31. Rg8# {[%clk 0:00:47]} 1-0


[Site "https://www.chess.com"]

[Event "Titled Tuesday Blitz August 17 2021"]
[White "Tania, Sachdev"]
[Black "Nazaretyan, Tigran"]
[WhiteFideId "5007844"]
[BlackFideId "24162345"]
[WhiteElo "2280"]
[BlackElo "2167"]
[Result "1-0"]
[Round "05"]
[TimeControl "180+1"]
[Date "2021.08.18"]
[WhiteClock "0:00:13"]
[BlackClock "0:00:15"]

1. d4 {[%clk 0:03:00]}  Nf6 {[%clk 0:02:59]} 2. c4 {[%clk 0:02:59]}  d6 {[%clk 0:03:00]} 3. Nc3 {[%clk 0:02:50]}  e5 {[%clk 0:02:59]} 4. Nf3 {[%clk 0:02:50]}  Nbd7 {[%clk 0:02:57]} 5. g3 {[%clk 0:02:42]}  c6 {[%clk 0:02:53]} 6. Bg2 {[%clk 0:02:39]}  e4 {[%clk 0:02:48]} 7. Ng5 {[%clk 0:02:39]}  d5 {[%clk 0:02:48]} 8. O-O {[%clk 0:02:35]}  h6 {[%clk 0:02:35]} 9. Nh3 {[%clk 0:02:35]}  Nb6 {[%clk 0:02:32]} 10. c5 {[%clk 0:02:27]}  Nbd7 {[%clk 0:02:31]} 11. f3 {[%clk 0:02:27]}  exf3 {[%clk 0:02:21]} 12. exf3 {[%clk 0:02:28]}  Be7 {[%clk 0:02:20]} 13. Bf4 {[%clk 0:02:08]}  O-O {[%clk 0:02:15]} 14. Qd2 {[%clk 0:02:08]}  Re8 {[%clk 0:02:00]} 15. Rae1 {[%clk 0:02:06]}  Nf8 {[%clk 0:02:00]} 16. Be5 {[%clk 0:01:59]}  N6d7 {[%clk 0:01:58]} 17. Bf4 {[%clk 0:01:51]}  Ng6 {[%clk 0:01:52]} 18. Be3 {[%clk 0:01:49]}  b6 {[%clk 0:01:51]} 19. b4 {[%clk 0:01:48]}  a5 {[%clk 0:01:50]} 20. a3 {[%clk 0:01:47]}  axb4 {[%clk 0:01:48]} 21. axb4 {[%clk 0:01:48]}  bxc5 {[%clk 0:01:48]} 22. bxc5 {[%clk 0:01:49]}  Ba6 {[%clk 0:01:48]} 23. Rf2 {[%clk 0:01:49]}  Bc4 {[%clk 0:01:47]} 24. Bf1 {[%clk 0:01:35]}  Bxf1 {[%clk 0:01:38]} 25. Kxf1 {[%clk 0:01:36]}  Bf6 {[%clk 0:01:34]} 26. Rfe2 {[%clk 0:01:25]}  Qa5 {[%clk 0:01:07]} 27. Rc1 {[%clk 0:00:31]}  Ndf8 {[%clk 0:00:41]} 28. Kg2 {[%clk 0:00:29]}  Ne6 {[%clk 0:00:40]} 29. f4 {[%clk 0:00:24]}  Ne7 {[%clk 0:00:40]} 30. g4 {[%clk 0:00:24]}  Qb4 {[%clk 0:00:24]} 31. f5 {[%clk 0:00:23]}  Nxd4 {[%clk 0:00:22]} 32. Ne4 {[%clk 0:00:18]}  Qxd2 {[%clk 0:00:18]} 33. Nxf6+ {[%clk 0:00:19]}  gxf6 {[%clk 0:00:19]} 34. Rxd2 {[%clk 0:00:20]}  Nb3 {[%clk 0:00:18]} 35. Rdc2 {[%clk 0:00:20]}  Nxc1 {[%clk 0:00:18]} 36. Rxc1 {[%clk 0:00:21]}  Kg7 {[%clk 0:00:18]} 37. Bd2 {[%clk 0:00:19]}  Reb8 {[%clk 0:00:18]} 38. Rc2 {[%clk 0:00:13]}  d4 {[%clk 0:00:16]} 39. Nf4 {[%clk 0:00:13]}  Rb3 {[%clk 0:00:15]} 40. Nh5+ {[%clk 0:00:14]}  Kg8 {[%clk 0:00:14]} 41. Nxf6+ {[%clk 0:00:14]}  Kf8 {[%clk 0:00:15]} 42. Bxh6# {[%clk 0:00:13]} 1-0


[Site "https://www.chess.com"]

[Event "Titled Tuesday Blitz August 17 2021"]
[White "Terry, Renato"]
[Black "Silich, Yahor"]
[WhiteFideId "3803457"]
[BlackFideId "13513656"]
[WhiteElo "2581"]
[BlackElo "2142"]
[Result "1-0"]
[Round "05"]
[TimeControl "180+1"]
[Date "2021.08.17"]
[WhiteClock "0:01:10"]
[BlackClock "0:00:06"]

1. e4 {[%clk 0:03:00]}  c5 {[%clk 0:02:55]} 2. Nf3 {[%clk 0:03:01]}  Nc6 {[%clk 0:02:54]} 3. Bb5 {[%clk 0:03:00]}  g6 {[%clk 0:02:53]} 4. Bxc6 {[%clk 0:02:57]}  dxc6 {[%clk 0:02:54]} 5. d3 {[%clk 0:02:57]}  Bg7 {[%clk 0:02:53]} 6. h3 {[%clk 0:02:58]}  Nf6 {[%clk 0:02:54]} 7. Nc3 {[%clk 0:02:58]}  Nd7 {[%clk 0:02:54]} 8. Be3 {[%clk 0:02:58]}  b6 {[%clk 0:02:54]} 9. Qd2 {[%clk 0:02:58]}  h6 {[%clk 0:02:55]} 10. O-O {[%clk 0:02:54]}  e5 {[%clk 0:02:55]} 11. Nh2 {[%clk 0:02:53]}  Nf8 {[%clk 0:02:55]} 12. f4 {[%clk 0:02:52]}  exf4 {[%clk 0:02:56]} 13. Rxf4 {[%clk 0:02:51]}  Be6 {[%clk 0:02:55]} 14. Raf1 {[%clk 0:02:47]}  Qc7 {[%clk 0:02:55]} 15. Ng4 {[%clk 0:02:45]}  O-O-O {[%clk 0:02:52]} 16. R4f2 {[%clk 0:02:38]}  g5 {[%clk 0:02:52]} 17. Nf6 {[%clk 0:02:22]}  Nd7 {[%clk 0:02:51]} 18. Nh5 {[%clk 0:02:18]}  Be5 {[%clk 0:02:50]} 19. g4 {[%clk 0:02:10]}  f5 {[%clk 0:02:12]} 20. exf5 {[%clk 0:02:00]}  Bf7 {[%clk 0:02:11]} 21. Ne4 {[%clk 0:01:52]}  Bxh5 {[%clk 0:01:54]} 22. gxh5 {[%clk 0:01:53]}  Nf6 {[%clk 0:01:55]} 23. Nxf6 {[%clk 0:01:51]}  Bxf6 {[%clk 0:01:56]} 24. Rf3 {[%clk 0:01:51]}  Qf7 {[%clk 0:01:52]} 25. Qg2 {[%clk 0:01:47]}  Qxh5 {[%clk 0:01:50]} 26. Rf4 {[%clk 0:01:39]}  Kb7 {[%clk 0:01:23]} 27. Re4 {[%clk 0:01:40]}  Qf7 {[%clk 0:01:07]} 28. Re6 {[%clk 0:01:39]}  Rc8 {[%clk 0:00:58]} 29. c3 {[%clk 0:01:34]}  Rhd8 {[%clk 0:00:57]} 30. Qe4 {[%clk 0:01:33]}  Rd5 {[%clk 0:00:51]} 31. Kg2 {[%clk 0:01:23]}  Rcd8 {[%clk 0:00:50]} 32. c4 {[%clk 0:01:23]}  R5d6 {[%clk 0:00:50]} 33. b3 {[%clk 0:01:18]}  Qd7 {[%clk 0:00:44]} 34. Rd1 {[%clk 0:01:17]}  Rxd3 {[%clk 0:00:20]} 35. Rxd3 {[%clk 0:01:14]}  Qxd3 {[%clk 0:00:21]} 36. Qxc6+ {[%clk 0:01:14]}  Kb8 {[%clk 0:00:22]} 37. Bf2 {[%clk 0:01:11]}  Bd4 {[%clk 0:00:06]} 38. Bg3+ {[%clk 0:01:10]} 1-0


[Site "https://www.chess.com"]

[Event "Titled Tuesday Blitz August 17 2021"]
[White "Tikhonov, Viacheslav"]
[Black "Gedgafov, Chamal"]
[WhiteFideId "44196407"]
[BlackFideId "34130621"]
[WhiteElo "1773"]
[BlackElo "2005"]
[Result "0-1"]
[Round "05"]
[TimeControl "180+1"]
[Date "2021.08.18"]
[WhiteClock "0:00:04"]
[BlackClock "0:00:08"]

1. e4 {[%clk 0:03:00]}  e6 {[%clk 0:02:58]} 2. d4 {[%clk 0:03:00]}  d5 {[%clk 0:02:59]} 3. Nc3 {[%clk 0:03:00]}  Bb4 {[%clk 0:02:58]} 4. Ne2 {[%clk 0:03:00]}  dxe4 {[%clk 0:02:55]} 5. a3 {[%clk 0:03:00]}  Be7 {[%clk 0:02:56]} 6. g4 {[%clk 0:02:56]}  Nd7 {[%clk 0:02:57]} 7. Bg2 {[%clk 0:02:51]}  h5 {[%clk 0:02:57]} 8. gxh5 {[%clk 0:02:41]}  Ngf6 {[%clk 0:02:53]} 9. Ng3 {[%clk 0:02:37]}  c6 {[%clk 0:02:39]} 10. Ncxe4 {[%clk 0:02:36]}  Nxe4 {[%clk 0:02:39]} 11. Nxe4 {[%clk 0:02:36]}  Nf6 {[%clk 0:02:38]} 12. c3 {[%clk 0:02:30]}  Nxh5 {[%clk 0:02:32]} 13. Be3 {[%clk 0:02:22]}  Qc7 {[%clk 0:02:23]} 14. Ng3 {[%clk 0:02:16]}  Nf4 {[%clk 0:02:16]} 15. Be4 {[%clk 0:02:10]}  f5 {[%clk 0:02:08]} 16. Bf3 {[%clk 0:02:09]}  g5 {[%clk 0:02:08]} 17. Bxf4 {[%clk 0:01:16]}  Qxf4 {[%clk 0:01:57]} 18. Qe2 {[%clk 0:01:16]}  g4 {[%clk 0:01:48]} 19. Bg2 {[%clk 0:01:16]}  Bd7 {[%clk 0:01:40]} 20. Qe3 {[%clk 0:01:14]}  Qd6 {[%clk 0:01:19]} 21. Qe5 {[%clk 0:01:11]}  Qxe5+ {[%clk 0:01:07]} 22. dxe5 {[%clk 0:01:12]}  O-O-O {[%clk 0:01:07]} 23. h3 {[%clk 0:00:51]}  gxh3 {[%clk 0:00:58]} 24. Rxh3 {[%clk 0:00:52]}  Bg5 {[%clk 0:00:56]} 25. Ke2 {[%clk 0:00:42]}  Bf4 {[%clk 0:00:53]} 26. Rah1 {[%clk 0:00:24]}  Bxe5 {[%clk 0:00:53]} 27. Nh5 {[%clk 0:00:19]}  Rhg8 {[%clk 0:00:49]} 28. Rg1 {[%clk 0:00:15]}  Rdf8 {[%clk 0:00:45]} 29. f4 {[%clk 0:00:11]}  Bd6 {[%clk 0:00:43]} 30. Rh2 {[%clk 0:00:06]}  c5 {[%clk 0:00:38]} 31. c4 {[%clk 0:00:03]}  Bc6 {[%clk 0:00:31]} 32. Kf2 {[%clk 0:00:03]}  Be8 {[%clk 0:00:29]} 33. Ng3 {[%clk 0:00:01]}  Bxf4 {[%clk 0:00:28]} 34. Bf3 {[%clk 0:00:01]}  Bc6 {[%clk 0:00:22]} 35. Bxc6 {[%clk 0:00:01]}  bxc6 {[%clk 0:00:21]} 36. Rhg2 {[%clk 0:00:02]}  Bxg3+ {[%clk 0:00:20]} 37. Rxg3 {[%clk 0:00:03]}  Rxg3 {[%clk 0:00:20]} 38. Rxg3 {[%clk 0:00:04]}  Rf7 {[%clk 0:00:20]} 39. Kf3 {[%clk 0:00:04]}  Kd7 {[%clk 0:00:21]} 40. Kf4 {[%clk 0:00:04]}  Kd6 {[%clk 0:00:20]} 41. Rd3+ {[%clk 0:00:04]}  Ke7 {[%clk 0:00:21]} 42. Re3 {[%clk 0:00:04]}  Rg7 {[%clk 0:00:20]} 43. Rh3 {[%clk 0:00:03]}  Rg4+ {[%clk 0:00:20]} 44. Ke3 {[%clk 0:00:03]}  Rxc4 {[%clk 0:00:20]} 45. Rh7+ {[%clk 0:00:04]}  Kd6 {[%clk 0:00:20]} 46. Rxa7 {[%clk 0:00:04]}  Rc2 {[%clk 0:00:20]} 47. Rb7 {[%clk 0:00:02]}  e5 {[%clk 0:00:20]} 48. a4 {[%clk 0:00:03]}  c4 {[%clk 0:00:20]} 49. a5 {[%clk 0:00:02]}  Rc1 {[%clk 0:00:20]} 50. a6 {[%clk 0:00:02]}  Kd5 {[%clk 0:00:19]} 51. a7 {[%clk 0:00:03]}  Ra1 {[%clk 0:00:19]} 52. Kd2 {[%clk 0:00:02]}  f4 {[%clk 0:00:18]} 53. Kc3 {[%clk 0:00:02]}  Kc5 {[%clk 0:00:19]} 54. Re7 {[%clk 0:00:02]}  Kd6 {[%clk 0:00:18]} 55. Rb7 {[%clk 0:00:02]}  e4 {[%clk 0:00:18]} 56. Kxc4 {[%clk 0:00:02]}  f3 {[%clk 0:00:17]} 57. Rf7 {[%clk 0:00:02]}  Ke6 {[%clk 0:00:16]} 58. Rc7 {[%clk 0:00:01]}  f2 {[%clk 0:00:14]} 59. Rc8 {[%clk 0:00:01]}  e3 {[%clk 0:00:14]} 60. Kc5 {[%clk 0:00:02]}  Rxa7 {[%clk 0:00:13]} 61. Kb6 {[%clk 0:00:02]}  Rf7 {[%clk 0:00:12]} 62. Re8+ {[%clk 0:00:03]}  Kf5 {[%clk 0:00:11]} 63. Rxe3 {[%clk 0:00:04]}  f1=Q {[%clk 0:00:11]} 64. Rb3 {[%clk 0:00:04]}  Qd1 {[%clk 0:00:11]} 65. Rc3 {[%clk 0:00:03]}  Qd4+ {[%clk 0:00:10]} 66. Rc5+ {[%clk 0:00:02]}  Ke4 {[%clk 0:00:09]} 67. Kxc6 {[%clk 0:00:02]}  Rf5 {[%clk 0:00:09]} 68. Rxf5 {[%clk 0:00:01]}  Kxf5 {[%clk 0:00:09]} 69. b4 {[%clk 0:00:02]}  Qxb4 {[%clk 0:00:09]} 70. Kd5 {[%clk 0:00:02]}  Qd2+ {[%clk 0:00:09]} 71. Kc6 {[%clk 0:00:03]}  Ke6 {[%clk 0:00:09]} 72. Kb5 {[%clk 0:00:02]}  Qc3 {[%clk 0:00:09]} 73. Kb6 {[%clk 0:00:03]}  Kd6 {[%clk 0:00:08]} 74. Ka7 {[%clk 0:00:03]}  Qb4 {[%clk 0:00:08]} 75. Ka6 {[%clk 0:00:04]}  Kc6 {[%clk 0:00:08]} 0-1


[Site "https://www.chess.com"]

[Event "Titled Tuesday Blitz August 17 2021"]
[White "Timmermans, Mark"]
[Black "Shapiro, David"]
[WhiteFideId "1026399"]
[BlackFideId "24133523"]
[WhiteElo "2460"]
[BlackElo "2234"]
[Result "1-0"]
[Round "05"]
[TimeControl "180+1"]
[Date "2021.08.17"]
[WhiteClock "0:00:16"]
[BlackClock "0:00:05"]

1. b4 {[%clk 0:03:00]}  e5 {[%clk 0:02:54]} 2. Bb2 {[%clk 0:03:00]}  Bxb4 {[%clk 0:02:51]} 3. Bxe5 {[%clk 0:03:00]}  Nf6 {[%clk 0:02:52]} 4. Nc3 {[%clk 0:03:00]}  Nc6 {[%clk 0:02:52]} 5. Bxf6 {[%clk 0:03:00]}  Qxf6 {[%clk 0:02:51]} 6. Nd5 {[%clk 0:03:01]}  Qe5 {[%clk 0:02:47]} 7. c4 {[%clk 0:03:00]}  Ba5 {[%clk 0:02:40]} 8. Nf3 {[%clk 0:02:58]}  Qe4 {[%clk 0:02:38]} 9. e3 {[%clk 0:02:46]}  Ne5 {[%clk 0:02:33]} 10. Nxe5 {[%clk 0:02:41]}  Qxe5 {[%clk 0:02:34]} 11. Be2 {[%clk 0:02:41]}  c6 {[%clk 0:02:31]} 12. Nf4 {[%clk 0:02:42]}  O-O {[%clk 0:01:55]} 13. O-O {[%clk 0:02:40]}  d6 {[%clk 0:01:53]} 14. d4 {[%clk 0:02:37]}  Qe7 {[%clk 0:01:50]} 15. Bd3 {[%clk 0:02:33]}  Qg5 {[%clk 0:01:39]} 16. Rb1 {[%clk 0:02:30]}  Bb6 {[%clk 0:01:38]} 17. Qf3 {[%clk 0:02:18]}  Bf5 {[%clk 0:01:32]} 18. h4 {[%clk 0:01:55]}  Qg4 {[%clk 0:01:29]} 19. Bxf5 {[%clk 0:01:55]}  Qxf5 {[%clk 0:01:29]} 20. g4 {[%clk 0:01:54]}  Qf6 {[%clk 0:01:26]} 21. Kg2 {[%clk 0:01:53]}  h6 {[%clk 0:01:19]} 22. Qg3 {[%clk 0:01:45]}  Rfe8 {[%clk 0:01:15]} 23. Rh1 {[%clk 0:01:39]}  Re4 {[%clk 0:01:00]} 24. g5 {[%clk 0:01:23]}  Qf5 {[%clk 0:00:58]} 25. gxh6 {[%clk 0:01:22]}  g6 {[%clk 0:00:57]} 26. Qg5 {[%clk 0:01:22]}  Bxd4 {[%clk 0:00:50]} 27. Qxf5 {[%clk 0:01:18]}  gxf5 {[%clk 0:00:51]} 28. Rxb7 {[%clk 0:01:18]}  Be5 {[%clk 0:00:51]} 29. Nh5 {[%clk 0:01:15]}  Rxc4 {[%clk 0:00:49]} 30. f4 {[%clk 0:01:07]}  Bh8 {[%clk 0:00:48]} 31. Kf3 {[%clk 0:01:08]}  Kh7 {[%clk 0:00:46]} 32. Rg1 {[%clk 0:01:02]}  Rf8 {[%clk 0:00:37]} 33. Ng3 {[%clk 0:00:55]}  Rc5 {[%clk 0:00:34]} 34. Rd1 {[%clk 0:00:54]}  Rd8 {[%clk 0:00:08]} 35. Rxf7+ {[%clk 0:00:52]}  Kg6 {[%clk 0:00:09]} 36. Rxa7 {[%clk 0:00:49]}  Kxh6 {[%clk 0:00:10]} 37. h5 {[%clk 0:00:44]}  Bf6 {[%clk 0:00:10]} 38. Rf7 {[%clk 0:00:32]}  Bh4 {[%clk 0:00:06]} 39. Nxf5+ {[%clk 0:00:32]}  Kxh5 {[%clk 0:00:06]} 40. Rh1 {[%clk 0:00:32]}  Kg6 {[%clk 0:00:06]} 41. Rg7+ {[%clk 0:00:23]}  Kxf5 {[%clk 0:00:06]} 42. Rxh4 {[%clk 0:00:24]}  Kf6 {[%clk 0:00:06]} 43. Rhg4 {[%clk 0:00:19]}  Rc3 {[%clk 0:00:05]} 44. R4g6+ {[%clk 0:00:19]}  Kf5 {[%clk 0:00:05]} 45. Rh6 {[%clk 0:00:16]} 1-0


[Site "https://www.chess.com"]

[Event "Titled Tuesday Blitz August 17 2021"]
[White "Tregubov, Pavel V."]
[Black "Abdurakhmonov, Mukhammadali"]
[WhiteFideId "4115341"]
[BlackFideId "14207346"]
[WhiteElo "2423"]
[BlackElo "2266"]
[Result "0-1"]
[Round "05"]
[TimeControl "180+1"]
[Date "2021.08.17"]
[WhiteClock "0:01:22"]
[BlackClock "0:00:23"]

1. e4 {[%clk 0:03:00]}  e5 {[%clk 0:02:58]} 2. Nf3 {[%clk 0:03:01]}  Nc6 {[%clk 0:02:58]} 3. Bb5 {[%clk 0:02:59]}  a6 {[%clk 0:02:58]} 4. Ba4 {[%clk 0:02:59]}  Nf6 {[%clk 0:02:58]} 5. O-O {[%clk 0:02:59]}  Nxe4 {[%clk 0:02:58]} 6. d4 {[%clk 0:02:53]}  b5 {[%clk 0:02:58]} 7. Bb3 {[%clk 0:02:53]}  d5 {[%clk 0:02:58]} 8. dxe5 {[%clk 0:02:53]}  Be6 {[%clk 0:02:58]} 9. c3 {[%clk 0:02:48]}  Bc5 {[%clk 0:02:55]} 10. a4 {[%clk 0:02:41]}  b4 {[%clk 0:01:34]} 11. Qe2 {[%clk 0:02:40]}  O-O {[%clk 0:01:28]} 12. Be3 {[%clk 0:02:40]}  Rb8 {[%clk 0:01:08]} 13. Bc2 {[%clk 0:02:35]}  Bg4 {[%clk 0:00:59]} 14. Bxc5 {[%clk 0:02:19]}  Nxc5 {[%clk 0:00:57]} 15. Qe3 {[%clk 0:02:12]}  Bxf3 {[%clk 0:00:54]} 16. Qxc5 {[%clk 0:02:07]}  Qg5 {[%clk 0:00:53]} 17. g3 {[%clk 0:02:07]}  Nxe5 {[%clk 0:00:50]} 18. Qe3 {[%clk 0:01:59]}  Qh5 {[%clk 0:00:36]} 19. h4 {[%clk 0:01:45]}  b3 {[%clk 0:00:32]} 20. Bd3 {[%clk 0:01:40]}  Nxd3 {[%clk 0:00:32]} 21. Qxd3 {[%clk 0:01:37]}  Be2 {[%clk 0:00:32]} 22. Qd4 {[%clk 0:01:35]}  Bxf1 {[%clk 0:00:31]} 23. Kxf1 {[%clk 0:01:36]}  c5 {[%clk 0:00:27]} 24. Qd2 {[%clk 0:01:29]}  Qf3 {[%clk 0:00:23]} 25. Kg1 {[%clk 0:01:29]}  Rfe8 {[%clk 0:00:23]} 26. Na3 {[%clk 0:01:22]}  Re2 {[%clk 0:00:23]} 27. Qf4 {[%clk 0:01:22]}  Qxf4 {[%clk 0:00:23]} 28. gxf4 {[%clk 0:01:22]}  Rxb2 {[%clk 0:00:23]} 0-1


[Site "https://www.chess.com"]

[Event "Titled Tuesday Blitz August 17 2021"]
[White "Yilmaz, Mustafa"]
[Black "Agibileg, Uurtsaikh"]
[WhiteFideId "6302718"]
[BlackFideId "4901606"]
[WhiteElo "2518"]
[BlackElo "2150"]
[Result "1-0"]
[Round "05"]
[TimeControl "180+1"]
[Date "2021.08.17"]
[WhiteClock "0:00:13"]
[BlackClock "0:00:04"]

1. e4 {[%clk 0:03:00]}  c5 {[%clk 0:02:59]} 2. Nf3 {[%clk 0:02:59]}  e6 {[%clk 0:02:59]} 3. d4 {[%clk 0:02:59]}  cxd4 {[%clk 0:03:00]} 4. Nxd4 {[%clk 0:03:00]}  Nc6 {[%clk 0:03:01]} 5. Nc3 {[%clk 0:02:58]}  Qc7 {[%clk 0:03:01]} 6. Be2 {[%clk 0:02:57]}  a6 {[%clk 0:03:01]} 7. Nxc6 {[%clk 0:02:58]}  bxc6 {[%clk 0:03:00]} 8. Qd3 {[%clk 0:02:57]}  Bd6 {[%clk 0:02:56]} 9. Bd2 {[%clk 0:02:32]}  Nf6 {[%clk 0:02:50]} 10. O-O-O {[%clk 0:02:30]}  Bf4 {[%clk 0:02:37]} 11. g3 {[%clk 0:02:07]}  Bxd2+ {[%clk 0:02:36]} 12. Qxd2 {[%clk 0:02:03]}  d5 {[%clk 0:02:34]} 13. Qg5 {[%clk 0:02:00]}  O-O {[%clk 0:02:32]} 14. e5 {[%clk 0:01:56]}  Nd7 {[%clk 0:02:32]} 15. f4 {[%clk 0:01:57]}  Rb8 {[%clk 0:02:31]} 16. Bd3 {[%clk 0:01:33]}  Qb6 {[%clk 0:02:20]} 17. b3 {[%clk 0:01:24]}  Qa5 {[%clk 0:02:15]} 18. Kb2 {[%clk 0:01:19]}  c5 {[%clk 0:02:10]} 19. f5 {[%clk 0:01:10]}  Nxe5 {[%clk 0:01:59]} 20. f6 {[%clk 0:01:01]}  Ng6 {[%clk 0:01:59]} 21. fxg7 {[%clk 0:00:51]}  Re8 {[%clk 0:01:56]} 22. h4 {[%clk 0:00:48]}  Qd8 {[%clk 0:01:52]} 23. Qh6 {[%clk 0:00:45]}  f5 {[%clk 0:01:40]} 24. g4 {[%clk 0:00:30]}  Qf6 {[%clk 0:01:23]} 25. h5 {[%clk 0:00:26]}  Qxg7 {[%clk 0:01:17]} 26. Qxg7+ {[%clk 0:00:26]}  Kxg7 {[%clk 0:01:17]} 27. hxg6 {[%clk 0:00:25]}  hxg6 {[%clk 0:01:18]} 28. gxf5 {[%clk 0:00:26]}  gxf5 {[%clk 0:01:17]} 29. Rdg1+ {[%clk 0:00:24]}  Kf6 {[%clk 0:01:15]} 30. Rh6+ {[%clk 0:00:24]}  Ke5 {[%clk 0:01:16]} 31. Re1+ {[%clk 0:00:23]}  Kd6 {[%clk 0:01:16]} 32. Bxf5 {[%clk 0:00:22]}  Bd7 {[%clk 0:00:58]} 33. Bg6 {[%clk 0:00:22]}  Rh8 {[%clk 0:00:56]} 34. Rxh8 {[%clk 0:00:20]}  Rxh8 {[%clk 0:00:57]} 35. Bd3 {[%clk 0:00:21]}  e5 {[%clk 0:00:50]} 36. Bxa6 {[%clk 0:00:19]}  Bc6 {[%clk 0:00:44]} 37. Rd1 {[%clk 0:00:19]}  Ke6 {[%clk 0:00:35]} 38. Bb5 {[%clk 0:00:18]}  Bb7 {[%clk 0:00:34]} 39. a4 {[%clk 0:00:14]}  e4 {[%clk 0:00:28]} 40. a5 {[%clk 0:00:14]}  d4 {[%clk 0:00:27]} 41. Na4 {[%clk 0:00:13]}  Kd6 {[%clk 0:00:19]} 42. a6 {[%clk 0:00:14]}  Ba8 {[%clk 0:00:19]} 43. Rg1 {[%clk 0:00:14]}  Rh2 {[%clk 0:00:12]} 44. Rg8 {[%clk 0:00:13]}  d3 {[%clk 0:00:11]} 45. Rxa8 {[%clk 0:00:13]}  Rxc2+ {[%clk 0:00:11]} 46. Kb1 {[%clk 0:00:13]}  Kc7 {[%clk 0:00:11]} 47. Re8 {[%clk 0:00:12]}  Rh2 {[%clk 0:00:04]} 48. a7 {[%clk 0:00:11]}  d2 {[%clk 0:00:04]} 49. Nc3 {[%clk 0:00:11]}  Kb6 {[%clk 0:00:01]} 50. a8=Q {[%clk 0:00:11]}  d1=Q+ {[%clk 0:00:02]} 51. Nxd1 {[%clk 0:00:11]}  Kxb5 {[%clk 0:00:02]} 52. Qa4+ {[%clk 0:00:11]}  Kb6 {[%clk 0:00:03]} 53. Re6+ {[%clk 0:00:12]}  Kc7 {[%clk 0:00:03]} 54. Qc6+ {[%clk 0:00:13]}  Kd8 {[%clk 0:00:04]} 55. Re8# {[%clk 0:00:13]} 1-0


[Site "https://www.chess.com"]